[Event "Early-Titled-Tuesday-Blitz-May-14-2024"]
[Site "Chess.com"]
[Date "2024.05.14"]
[Round "7"]
[White "wonderfultime"]
[Black "platy3"]
[Result "1-0"]
[WhiteElo "3062"]
[BlackElo "2866"]
[TimeControl "180+1"]
[EndTime "9:21:58 PDT"]
[Termination "wonderfultime won by resignation"]

1. d4 {[%clk 0:02:50.3]} 1... Nf6 {[%clk 0:02:59.6]} 2. Nf3 {[%clk 0:02:50]}
2... d5 {[%clk 0:02:59.5]} 3. Bg5 {[%clk 0:02:50.5]} 3... c6 {[%clk 0:02:57]} 4.
Bxf6 {[%clk 0:02:46.5]} 4... gxf6 {[%clk 0:02:55.7]} 5. e3 {[%clk 0:02:45.6]}
5... Bf5 {[%clk 0:02:55.7]} 6. c4 {[%clk 0:02:45.8]} 6... e6 {[%clk 0:02:55.5]}
7. Nc3 {[%clk 0:02:46.1]} 7... Nd7 {[%clk 0:02:55.3]} 8. Bd3 {[%clk 0:02:41.6]}
8... Bg6 {[%clk 0:02:55.1]} 9. O-O {[%clk 0:02:37.4]} 9... Bd6 {[%clk
0:02:51.2]} 10. cxd5 {[%clk 0:02:32.9]} 10... cxd5 {[%clk 0:02:50.8]} 11. e4
{[%clk 0:02:30.6]} 11... dxe4 {[%clk 0:02:47.3]} 12. Bxe4 {[%clk 0:02:29.8]}
12... Qb6 {[%clk 0:02:40]} 13. d5 {[%clk 0:02:22.8]} 13... e5 {[%clk 0:02:33.4]}
14. Nh4 {[%clk 0:01:42]} 14... Qxb2 {[%clk 0:02:27.4]} 15. Qf3 {[%clk
0:01:42.6]} 15... Rc8 {[%clk 0:02:19.6]} 16. Ne2 {[%clk 0:01:27.3]} 16... Qa3
{[%clk 0:01:55.2]} 17. Ng3 {[%clk 0:01:14.3]} 17... Qxf3 {[%clk 0:01:53.1]} 18.
gxf3 {[%clk 0:01:15.2]} 18... Nc5 {[%clk 0:01:48.3]} 19. Bf5 {[%clk 0:01:14.6]}
19... Rc7 {[%clk 0:01:44.9]} 20. Rac1 {[%clk 0:01:11.5]} 20... Rg8 {[%clk
0:01:19.8]} 21. Kh1 {[%clk 0:01:06.6]} 21... Ke7 {[%clk 0:00:59.2]} 22. Bh3
{[%clk 0:01:04.7]} 22... Rd8 {[%clk 0:00:56.8]} 23. Nhf5+ {[%clk 0:00:50]} 23...
Kf8 {[%clk 0:00:56.9]} 24. Rfd1 {[%clk 0:00:49.7]} 24... b6 {[%clk 0:00:29.5]}
25. Bf1 {[%clk 0:00:46.8]} 25... Kg8 {[%clk 0:00:18.3]} 26. h4 {[%clk
0:00:45.1]} 26... h5 {[%clk 0:00:14.1]} 27. Bb5 {[%clk 0:00:45.3]} 27... Bf8
{[%clk 0:00:13.3]} 28. d6 {[%clk 0:00:42.3]} 28... Rb7 {[%clk 0:00:09.8]} 29.
Bc6 {[%clk 0:00:42.7]} 29... Rbd7 {[%clk 0:00:09.3]} 30. Bxd7 {[%clk 0:00:40.6]}
30... Rxd7 {[%clk 0:00:10.2]} 31. a4 {[%clk 0:00:32.7]} 31... Kh7 {[%clk
0:00:10.6]} 32. a5 {[%clk 0:00:29.2]} 32... Bxf5 {[%clk 0:00:10.7]} 33. Nxf5
{[%clk 0:00:30.1]} 33... Kg6 {[%clk 0:00:11.1]} 34. Ne3 {[%clk 0:00:30.6]} 34...
Rxd6 {[%clk 0:00:09.3]} 35. Rxd6 {[%clk 0:00:24]} 35... Bxd6 {[%clk 0:00:10.2]}
36. axb6 {[%clk 0:00:20.9]} 36... axb6 {[%clk 0:00:11.1]} 37. Rg1+ {[%clk
0:00:21.4]} 37... Kh7 {[%clk 0:00:10.9]} 38. Nd5 {[%clk 0:00:21.8]} 38... Nd7
{[%clk 0:00:09.4]} 39. Ra1 {[%clk 0:00:13.7]} 39... Kg6 {[%clk 0:00:08.5]} 40.
Kg2 {[%clk 0:00:13.4]} 40... Kf5 {[%clk 0:00:08.5]} 41. Ra7 {[%clk 0:00:06.3]}
41... Ke6 {[%clk 0:00:08.4]} 42. Nc3 {[%clk 0:00:06.2]} 42... f5 {[%clk
0:00:07.6]} 43. Rb7 {[%clk 0:00:05.6]} 43... Bc5 {[%clk 0:00:06.8]} 44. Ne2
{[%clk 0:00:06]} 44... Nf6 {[%clk 0:00:06.5]} 45. f4 {[%clk 0:00:06.1]} 45...
Ng4 {[%clk 0:00:03.6]} 46. fxe5 {[%clk 0:00:05.1]} 46... Kxe5 {[%clk 0:00:04.3]}
47. f3 {[%clk 0:00:03.7]} 47... Ne3+ {[%clk 0:00:04.6]} 48. Kh3 {[%clk
0:00:04.4]} 48... Nd5 {[%clk 0:00:04.8]} 49. Rxf7 {[%clk 0:00:04.3]} 49... Ke6
{[%clk 0:00:04]} 50. Rh7 {[%clk 0:00:04.4]} 50... Nf6 {[%clk 0:00:04.5]} 51. Rh6
{[%clk 0:00:05.1]} 51... Ke5 {[%clk 0:00:04]} 52. f4+ {[%clk 0:00:05.1]} 52...
Ke6 {[%clk 0:00:04.6]} 53. Ng3 {[%clk 0:00:05.3]} 53... Bf8 {[%clk 0:00:05.2]}
54. Rg6 {[%clk 0:00:05.4]} 54... Kf7 {[%clk 0:00:04.3]} 55. Rg5 {[%clk 0:00:06]}
55... Ke6 {[%clk 0:00:03.7]} 56. Rxf5 {[%clk 0:00:05.5]} 56... Bd6 {[%clk
0:00:03.1]} 57. Rb5 {[%clk 0:00:05.2]} 57... Bxf4 {[%clk 0:00:03]} 58. Rxb6+
{[%clk 0:00:05.7]} 58... Kf7 {[%clk 0:00:03.8]} 59. Rb7+ {[%clk 0:00:05.5]}
59... Kg6 {[%clk 0:00:04.4]} 60. Ne2 {[%clk 0:00:05.9]} 60... Be5 {[%clk
0:00:04.4]} 61. Rb5 {[%clk 0:00:06.5]} 61... Kf5 {[%clk 0:00:04]} 62. Ng3+
{[%clk 0:00:05.1]} 62... Kf4 {[%clk 0:00:04.4]} 63. Ne2+ {[%clk 0:00:04.6]}
63... Kf5 {[%clk 0:00:04.7]} 64. Nd4+ {[%clk 0:00:05.2]} 64... Kf4 {[%clk
0:00:04.9]} 65. Ne6+ {[%clk 0:00:05.4]} 65... Ke4 {[%clk 0:00:05.5]} 66. Ng5+
{[%clk 0:00:05.5]} 66... Kf4 {[%clk 0:00:06.1]} 67. Rb4+ {[%clk 0:00:05.2]}
67... Kf5 {[%clk 0:00:06.5]} 68. Nf3 {[%clk 0:00:05.8]} 68... Bf4 {[%clk
0:00:06.8]} 69. Rb5+ {[%clk 0:00:05.4]} 69... Ke4 {[%clk 0:00:07.4]} 70. Kg2
{[%clk 0:00:06.1]} 70... Ng4 {[%clk 0:00:06.2]} 71. Ng5+ {[%clk 0:00:06.1]}
71... Ke3 {[%clk 0:00:05]} 72. Rb3+ {[%clk 0:00:05.8]} 72... Kd4 {[%clk
0:00:05.2]} 73. Rb4+ {[%clk 0:00:06.3]} 73... Ke5 {[%clk 0:00:05.6]} 74. Rb5+
{[%clk 0:00:05.9]} 74... Kd4 {[%clk 0:00:05.7]} 75. Ne6+ {[%clk 0:00:06.3]}
75... Kc4 {[%clk 0:00:02.6]} 76. Rxh5 {[%clk 0:00:04.3]} 76... Bd2 {[%clk
0:00:02.6]} 77. Rh8 {[%clk 0:00:03.4]} 77... Nf6 {[%clk 0:00:02.7]} 78. Rf8
{[%clk 0:00:03.2]} 78... Nd5 {[%clk 0:00:02.6]} 79. h5 {[%clk 0:00:02.9]} 79...
Kb5 {[%clk 0:00:02.2]} 80. Rf5 {[%clk 0:00:02.6]} 80... Kc6 {[%clk 0:00:02.5]}
81. Rf8 {[%clk 0:00:03.1]} 81... Kd7 {[%clk 0:00:02.6]} 82. Nd4 {[%clk
0:00:03.2]} 82... Kd6 {[%clk 0:00:01.7]} 83. h6 {[%clk 0:00:03.2]} 83... Bxh6
{[%clk 0:00:01.6]} 84. Nf5+ {[%clk 0:00:03.9]} 84... Ke5 {[%clk 0:00:01.8]} 85.
Nxh6 {[%clk 0:00:04.8]} 85... Nf4+ {[%clk 0:00:02.1]} 86. Kf3 {[%clk 0:00:05.4]}
86... Ne6 {[%clk 0:00:03]} 87. Rf5+ {[%clk 0:00:05]} 1-0

[Event "Early-Titled-Tuesday-Blitz-May-14-2024"]
[Site "Chess.com"]
[Date "2024.05.14"]
[Round "7"]
[White "Louis-Paulsen-Fan"]
[Black "ProtectiveCarrot"]
[Result "0-1"]
[WhiteElo "2330"]
[BlackElo "2503"]
[TimeControl "180+1"]
[EndTime "9:22:30 PDT"]
[Termination "ProtectiveCarrot won by checkmate"]

1. d4 {[%clk 0:03:00.9]} 1... a6 {[%clk 0:03:00.9]} 2. Nf3 {[%clk 0:03:00.6]}
2... Nf6 {[%clk 0:02:58.4]} 3. c4 {[%clk 0:03:00.6]} 3... b5 {[%clk 0:02:58.4]}
4. Bg5 {[%clk 0:02:53.3]} 4... bxc4 {[%clk 0:02:57.7]} 5. e3 {[%clk 0:02:52.8]}
5... d5 {[%clk 0:02:56]} 6. b3 {[%clk 0:02:37.5]} 6... cxb3 {[%clk 0:02:54.5]}
7. axb3 {[%clk 0:02:37.8]} 7... Ne4 {[%clk 0:02:53.1]} 8. Bh4 {[%clk 0:02:36.7]}
8... Qd6 {[%clk 0:02:48]} 9. Bd3 {[%clk 0:02:35.5]} 9... Qb4+ {[%clk 0:02:37.9]}
10. Nbd2 {[%clk 0:02:33]} 10... Nxd2 {[%clk 0:02:37.1]} 11. Nxd2 {[%clk
0:02:32.8]} 11... e6 {[%clk 0:02:34.3]} 12. O-O {[%clk 0:02:30.7]} 12... Bd6
{[%clk 0:02:34.2]} 13. Ra4 {[%clk 0:02:14.7]} 13... Qb6 {[%clk 0:02:31.7]} 14.
Qg4 {[%clk 0:02:14.2]} 14... g6 {[%clk 0:02:30.1]} 15. Bf6 {[%clk 0:02:12.2]}
15... Rg8 {[%clk 0:02:29.6]} 16. Qh4 {[%clk 0:02:05]} 16... h5 {[%clk 0:02:29]}
17. Qg5 {[%clk 0:01:58.3]} 17... Nd7 {[%clk 0:02:27.8]} 18. Rfa1 {[%clk
0:01:36.6]} 18... Nxf6 {[%clk 0:02:26.7]} 19. Qxf6 {[%clk 0:01:37.5]} 19... Be7
{[%clk 0:02:25.8]} 20. Qe5 {[%clk 0:01:32.3]} 20... a5 {[%clk 0:02:24.8]} 21. e4
{[%clk 0:01:24.8]} 21... Bd7 {[%clk 0:02:17.2]} 22. R4a2 {[%clk 0:01:09.2]}
22... Bd6 {[%clk 0:02:17.5]} 23. Qf6 {[%clk 0:01:08.8]} 23... c6 {[%clk
0:02:04.2]} 24. exd5 {[%clk 0:00:58.8]} 24... cxd5 {[%clk 0:02:01.9]} 25. Nf3
{[%clk 0:00:58.9]} 25... Qxb3 {[%clk 0:01:42.8]} 26. Bc2 {[%clk 0:00:59.1]}
26... Qb6 {[%clk 0:01:40.6]} 27. Ba4 {[%clk 0:00:54.1]} 27... Bxa4 {[%clk
0:01:37.6]} 28. Rxa4 {[%clk 0:00:55]} 28... Qd8 {[%clk 0:01:38]} 29. Qxd8+
{[%clk 0:00:43]} 29... Kxd8 {[%clk 0:01:38.9]} 30. Rxa5 {[%clk 0:00:43.4]} 30...
Rxa5 {[%clk 0:01:39]} 31. Rxa5 {[%clk 0:00:44]} 31... Ke7 {[%clk 0:01:37.8]} 32.
Ra7+ {[%clk 0:00:41.3]} 32... Kf6 {[%clk 0:01:34.5]} 33. h4 {[%clk 0:00:41.3]}
33... Re8 {[%clk 0:01:25.3]} 34. g3 {[%clk 0:00:32.8]} 34... Kg7 {[%clk
0:01:23.7]} 35. Kg2 {[%clk 0:00:29.1]} 35... Be7 {[%clk 0:01:23.1]} 36. Ne5
{[%clk 0:00:27]} 36... f6 {[%clk 0:01:16.3]} 37. Nc6 {[%clk 0:00:17.9]} 37...
Kf8 {[%clk 0:01:16.7]} 38. Rb7 {[%clk 0:00:13.7]} 38... Bd6 {[%clk 0:01:13.2]}
39. f3 {[%clk 0:00:11.9]} 39... Rc8 {[%clk 0:01:12.5]} 40. Na5 {[%clk
0:00:08.5]} 40... Rc2+ {[%clk 0:01:11.6]} 41. Kh3 {[%clk 0:00:08.9]} 41... Rf2
{[%clk 0:01:07.6]} 42. f4 {[%clk 0:00:08.2]} 42... Rd2 {[%clk 0:01:05.5]} 43.
Rb6 {[%clk 0:00:08.1]} 43... Ke7 {[%clk 0:01:02.5]} 44. Rb7+ {[%clk 0:00:07.3]}
44... Ke8 {[%clk 0:01:01.6]} 45. Nc6 {[%clk 0:00:08]} 45... Rc2 {[%clk 0:00:57]}
46. Na7 {[%clk 0:00:08]} 46... Rc7 {[%clk 0:00:54.8]} 47. Rb8+ {[%clk
0:00:07.5]} 47... Kf7 {[%clk 0:00:46.8]} 48. Nb5 {[%clk 0:00:08.2]} 48... Rd7
{[%clk 0:00:47.1]} 49. Rb7 {[%clk 0:00:06.8]} 49... Ke7 {[%clk 0:00:44.5]} 50.
Rb6 {[%clk 0:00:05.4]} 50... Bb4 {[%clk 0:00:39.4]} 51. g4 {[%clk 0:00:04.3]}
51... hxg4+ {[%clk 0:00:38.2]} 52. Kxg4 {[%clk 0:00:05.2]} 52... Bd2 {[%clk
0:00:35]} 53. Rc6 {[%clk 0:00:02.2]} 53... Rb7 {[%clk 0:00:30.3]} 54. Nc7 {[%clk
0:00:01.4]} 54... Kd7 {[%clk 0:00:27.6]} 55. Rxe6 {[%clk 0:00:01.6]} 55... Rxc7
{[%clk 0:00:19.1]} 56. Rxf6 {[%clk 0:00:02.2]} 56... Rc6 {[%clk 0:00:19.7]} 57.
Rf7+ {[%clk 0:00:02.1]} 57... Ke6 {[%clk 0:00:19.3]} 58. Rg7 {[%clk 0:00:01.9]}
58... Kf6 {[%clk 0:00:19]} 59. Rd7 {[%clk 0:00:02]} 59... Ke6 {[%clk 0:00:10.1]}
60. Rg7 {[%clk 0:00:02.1]} 60... Kf6 {[%clk 0:00:09.2]} 61. Rd7 {[%clk
0:00:02.1]} 61... Rc3 {[%clk 0:00:08.3]} 62. Rxd5 {[%clk 0:00:02.4]} 62... Be1
{[%clk 0:00:07.7]} 63. Rd6+ {[%clk 0:00:02.9]} 63... Kg7 {[%clk 0:00:08]} 64.
Rd7+ {[%clk 0:00:02.5]} 64... Kh6 {[%clk 0:00:07.9]} 65. f5 {[%clk 0:00:03.2]}
65... Rg3+ {[%clk 0:00:06.9]} 66. Kf4 {[%clk 0:00:03.5]} 66... gxf5 {[%clk
0:00:04.8]} 67. Kxf5 {[%clk 0:00:04.4]} 67... Rd3 {[%clk 0:00:04.1]} 68. Ke4
{[%clk 0:00:04.7]} 68... Rd1 {[%clk 0:00:03.7]} 69. d5 {[%clk 0:00:05.6]} 69...
Bxh4 {[%clk 0:00:03]} 70. Rd6+ {[%clk 0:00:06.5]} 70... Kg5 {[%clk 0:00:02.1]}
71. Re6 {[%clk 0:00:06.8]} 71... Bg3 {[%clk 0:00:02.1]} 72. Kf3 {[%clk 0:00:05]}
72... Bc7 {[%clk 0:00:00.2]} 73. Re7 {[%clk 0:00:05.2]} 73... Bd6 {[%clk
0:00:00.4]} 74. Re6 {[%clk 0:00:05.1]} 74... Bb4 {[%clk 0:00:00.9]} 75. d6
{[%clk 0:00:05]} 75... Rd3+ {[%clk 0:00:01.3]} 76. Ke4 {[%clk 0:00:05.3]} 76...
Rd1 {[%clk 0:00:01.8]} 77. Ke5 {[%clk 0:00:05.3]} 77... Bc3+ {[%clk 0:00:01.6]}
78. Ke4 {[%clk 0:00:04.8]} 78... Kg4 {[%clk 0:00:02.1]} 79. Rg6+ {[%clk
0:00:03.4]} 79... Kh5 {[%clk 0:00:02.8]} 80. Rg2 {[%clk 0:00:03.6]} 80... Rxd6
{[%clk 0:00:01.1]} 81. Kf5 {[%clk 0:00:03]} 81... Rd5+ {[%clk 0:00:00.8]} 82.
Ke4 {[%clk 0:00:03.5]} 82... Re5+ {[%clk 0:00:01.1]} 83. Kd3 {[%clk 0:00:04.3]}
83... Ba1 {[%clk 0:00:01.7]} 84. Kc4 {[%clk 0:00:04.9]} 84... Ra5 {[%clk
0:00:02.1]} 85. Rg8 {[%clk 0:00:05.1]} 85... Bf6 {[%clk 0:00:02.5]} 86. Kb3
{[%clk 0:00:05.6]} 86... Rb5+ {[%clk 0:00:02.1]} 87. Kc4 {[%clk 0:00:06]} 87...
Re5 {[%clk 0:00:02.4]} 88. Kd4 {[%clk 0:00:06.2]} 88... Re8+ {[%clk 0:00:00.7]}
89. Kd5 {[%clk 0:00:04.8]} 89... Rxg8 {[%clk 0:00:01.6]} 90. Ke6 {[%clk
0:00:05.7]} 90... Kg6 {[%clk 0:00:02]} 91. Kd5 {[%clk 0:00:05.7]} 91... Rg7
{[%clk 0:00:02.9]} 92. Ke6 {[%clk 0:00:06.6]} 92... Rf7 {[%clk 0:00:03.7]} 93.
Kd5 {[%clk 0:00:07.4]} 93... Re7 {[%clk 0:00:04.3]} 94. Kd6 {[%clk 0:00:07.7]}
94... Kf5 {[%clk 0:00:05.2]} 95. Kd5 {[%clk 0:00:08.6]} 95... Re5+ {[%clk
0:00:05.8]} 96. Kd6 {[%clk 0:00:09.5]} 96... Be7+ {[%clk 0:00:06.1]} 97. Kd7
{[%clk 0:00:10.4]} 97... Kf6 {[%clk 0:00:06.2]} 98. Kc6 {[%clk 0:00:09.8]} 98...
Ba3 {[%clk 0:00:06.5]} 99. Kd7 {[%clk 0:00:10.7]} 99... Re7+ {[%clk 0:00:06]}
100. Kc6 {[%clk 0:00:11.6]} 100... Ke5 {[%clk 0:00:05.9]} 101. Kb5 {[%clk
0:00:11.7]} 101... Rc7 {[%clk 0:00:06]} 102. Ka4 {[%clk 0:00:11.8]} 102... Bc1
{[%clk 0:00:05.5]} 103. Kb3 {[%clk 0:00:12.7]} 103... Kd4 {[%clk 0:00:05.4]}
104. Kb4 {[%clk 0:00:13.3]} 104... Rb7+ {[%clk 0:00:04.4]} 105. Ka5 {[%clk
0:00:13.6]} 105... Bg5 {[%clk 0:00:04.5]} 106. Ka6 {[%clk 0:00:14.5]} 106... Rb1
{[%clk 0:00:03.9]} 107. Ka5 {[%clk 0:00:14.8]} 107... Kc4 {[%clk 0:00:03.5]}
108. Ka6 {[%clk 0:00:15.4]} 108... Kc5 {[%clk 0:00:04]} 109. Ka7 {[%clk
0:00:16]} 109... Kc6 {[%clk 0:00:04.5]} 110. Ka6 {[%clk 0:00:16.9]} 110... Ra1#
{[%clk 0:00:04.2]} 0-1

[Event "Early-Titled-Tuesday-Blitz-May-14-2024"]
[Site "Chess.com"]
[Date "2024.05.14"]
[Round "7"]
[White "chess_blitz00"]
[Black "Evan_Attaker"]
[Result "1/2-1/2"]
[WhiteElo "2482"]
[BlackElo "2643"]
[TimeControl "180+1"]
[EndTime "9:22:56 PDT"]
[Termination "Game drawn - insufficient material"]

1. f3 {[%clk 0:03:00.5]} 1... g6 {[%clk 0:02:58.9]} 2. Nh3 {[%clk 0:03:00.8]}
2... Bg7 {[%clk 0:02:58.1]} 3. Nf2 {[%clk 0:03:01.7]} 3... c5 {[%clk 0:02:57.6]}
4. g3 {[%clk 0:03:01.2]} 4... Nc6 {[%clk 0:02:57.5]} 5. Bg2 {[%clk 0:03:01.9]}
5... Nf6 {[%clk 0:02:57.2]} 6. O-O {[%clk 0:03:02.6]} 6... O-O {[%clk
0:02:56.1]} 7. c3 {[%clk 0:03:02.8]} 7... b6 {[%clk 0:02:52.4]} 8. Na3 {[%clk
0:03:03.5]} 8... Bb7 {[%clk 0:02:52.6]} 9. Nc2 {[%clk 0:03:04.4]} 9... a6 {[%clk
0:02:52.2]} 10. d4 {[%clk 0:03:04.7]} 10... e6 {[%clk 0:02:51.1]} 11. dxc5
{[%clk 0:02:57.9]} 11... bxc5 {[%clk 0:02:52]} 12. Qd6 {[%clk 0:02:56.4]} 12...
Qb6 {[%clk 0:02:41.2]} 13. Nd3 {[%clk 0:02:44.9]} 13... c4+ {[%clk 0:02:33.4]}
14. Be3 {[%clk 0:01:57.4]} 14... Qd8 {[%clk 0:01:51.5]} 15. Nc5 {[%clk
0:01:52.7]} 15... Qc8 {[%clk 0:01:51.4]} 16. Rfd1 {[%clk 0:01:41.1]} 16... Rd8
{[%clk 0:01:46]} 17. Na4 {[%clk 0:01:18.1]} 17... Bf8 {[%clk 0:01:39.5]} 18. Qf4
{[%clk 0:01:17.5]} 18... Nd5 {[%clk 0:01:36.8]} 19. Qxc4 {[%clk 0:01:07.2]}
19... Nxe3 {[%clk 0:01:34.4]} 20. Nxe3 {[%clk 0:01:08.1]} 20... d5 {[%clk
0:01:31.5]} 21. Qb3 {[%clk 0:01:04.9]} 21... Rb8 {[%clk 0:01:29.9]} 22. Qc2
{[%clk 0:00:59.8]} 22... Qc7 {[%clk 0:01:27.3]} 23. Kh1 {[%clk 0:00:58.8]} 23...
Na5 {[%clk 0:01:24]} 24. b4 {[%clk 0:00:53.8]} 24... Nc4 {[%clk 0:01:19.2]} 25.
Nxc4 {[%clk 0:00:53.9]} 25... Qxc4 {[%clk 0:01:17.3]} 26. Nb2 {[%clk 0:00:53.6]}
26... Qc7 {[%clk 0:01:16.2]} 27. Rac1 {[%clk 0:00:52.1]} 27... Rdc8 {[%clk
0:01:14.6]} 28. Nd3 {[%clk 0:00:44.4]} 28... a5 {[%clk 0:01:12.6]} 29. Qd2
{[%clk 0:00:40.7]} 29... Ba6 {[%clk 0:01:09]} 30. a3 {[%clk 0:00:36.5]} 30... h5
{[%clk 0:01:04.5]} 31. f4 {[%clk 0:00:27]} 31... Bxd3 {[%clk 0:00:54.4]} 32.
Qxd3 {[%clk 0:00:25.2]} 32... Bg7 {[%clk 0:00:51.3]} 33. e4 {[%clk 0:00:24]}
33... dxe4 {[%clk 0:00:48.6]} 34. Qxe4 {[%clk 0:00:24.3]} 34... axb4 {[%clk
0:00:42.2]} 35. axb4 {[%clk 0:00:21.2]} 35... Bxc3 {[%clk 0:00:35.6]} 36. Rc2
{[%clk 0:00:07.4]} 36... Rxb4 {[%clk 0:00:32]} 37. Qxb4 {[%clk 0:00:04.7]} 37...
Bxb4 {[%clk 0:00:31]} 38. Rxc7 {[%clk 0:00:05.6]} 38... Rxc7 {[%clk 0:00:31.6]}
39. Bf3 {[%clk 0:00:06.1]} 39... Rc2 {[%clk 0:00:27.3]} 40. Rf1 {[%clk
0:00:06.1]} 40... Kg7 {[%clk 0:00:24.2]} 41. Be4 {[%clk 0:00:04.1]} 41... Re2
{[%clk 0:00:23.4]} 42. Bf3 {[%clk 0:00:04.4]} 42... Rd2 {[%clk 0:00:23.8]} 43.
Bg2 {[%clk 0:00:04.2]} 43... Kf6 {[%clk 0:00:20.6]} 44. Be4 {[%clk 0:00:02.9]}
44... Bc5 {[%clk 0:00:20.3]} 45. Bb1 {[%clk 0:00:02.3]} 45... Kg7 {[%clk
0:00:18.3]} 46. Be4 {[%clk 0:00:02.5]} 46... Be3 {[%clk 0:00:18.7]} 47. Bb1
{[%clk 0:00:03]} 47... g5 {[%clk 0:00:18.9]} 48. fxg5 {[%clk 0:00:03.1]} 48...
Bxg5 {[%clk 0:00:19.8]} 49. Be4 {[%clk 0:00:03.4]} 49... f5 {[%clk 0:00:19.1]}
50. Bf3 {[%clk 0:00:03.5]} 50... Kg6 {[%clk 0:00:18.9]} 51. Re1 {[%clk
0:00:02.6]} 51... Rd6 {[%clk 0:00:17.4]} 52. Re2 {[%clk 0:00:02.8]} 52... h4
{[%clk 0:00:17.8]} 53. Kg2 {[%clk 0:00:03.4]} 53... hxg3 {[%clk 0:00:17.9]} 54.
hxg3 {[%clk 0:00:04.3]} 54... Kf6 {[%clk 0:00:18.3]} 55. g4 {[%clk 0:00:04.3]}
55... f4 {[%clk 0:00:15.3]} 56. Re4 {[%clk 0:00:04.5]} 56... e5 {[%clk
0:00:14.9]} 57. Re2 {[%clk 0:00:04.8]} 57... Bh4 {[%clk 0:00:14.7]} 58. Be4
{[%clk 0:00:04.4]} 58... Bg3 {[%clk 0:00:12]} 59. Bf3 {[%clk 0:00:04.1]} 59...
Ra6 {[%clk 0:00:10.8]} 60. Rc2 {[%clk 0:00:03.1]} 60... Ra5 {[%clk 0:00:11.2]}
61. Rc6+ {[%clk 0:00:03.3]} 61... Kg5 {[%clk 0:00:11.6]} 62. Rc2 {[%clk
0:00:03]} 62... Ra4 {[%clk 0:00:11]} 63. Re2 {[%clk 0:00:03.2]} 63... Ra5 {[%clk
0:00:11.1]} 64. Re4 {[%clk 0:00:03.2]} 64... Bh4 {[%clk 0:00:10.2]} 65. Re2
{[%clk 0:00:03.6]} 65... Kf6 {[%clk 0:00:10.3]} 66. Be4 {[%clk 0:00:03.7]} 66...
Kg7 {[%clk 0:00:09.9]} 67. Bf3 {[%clk 0:00:04.1]} 67... Be7 {[%clk 0:00:10.1]}
68. Rc2 {[%clk 0:00:04.3]} 68... Bc5 {[%clk 0:00:09.8]} 69. Re2 {[%clk
0:00:04.2]} 69... Kf6 {[%clk 0:00:10]} 70. g5+ {[%clk 0:00:03.9]} 70... Kf5
{[%clk 0:00:08.9]} 71. g6 {[%clk 0:00:04.5]} 71... Bd4 {[%clk 0:00:08.7]} 72.
Be4+ {[%clk 0:00:04.9]} 72... Kf6 {[%clk 0:00:08.3]} 73. Kf3 {[%clk 0:00:05.2]}
73... Ra3+ {[%clk 0:00:08.1]} 74. Kg4 {[%clk 0:00:05.3]} 74... Rg3+ {[%clk
0:00:09]} 75. Kh4 {[%clk 0:00:05.7]} 75... Kg7 {[%clk 0:00:06]} 76. Rc2 {[%clk
0:00:04.8]} 76... Rxg6 {[%clk 0:00:06]} 77. Bxg6 {[%clk 0:00:04.4]} 77... Kxg6
{[%clk 0:00:06.9]} 78. Kg4 {[%clk 0:00:04.5]} 78... Kf6 {[%clk 0:00:07.5]} 79.
Re2 {[%clk 0:00:04.1]} 79... Ke6 {[%clk 0:00:07.8]} 80. Kf3 {[%clk 0:00:03.6]}
80... Kd5 {[%clk 0:00:08.7]} 81. Re4 {[%clk 0:00:04.2]} 81... Bc3 {[%clk
0:00:08.7]} 82. Ra4 {[%clk 0:00:04.1]} 82... Bd4 {[%clk 0:00:08.8]} 83. Ra5+
{[%clk 0:00:04.4]} 83... Bc5 {[%clk 0:00:09.4]} 84. Ra4 {[%clk 0:00:03.8]} 84...
Bd6 {[%clk 0:00:08.8]} 85. Ra5+ {[%clk 0:00:03.9]} 85... Bc5 {[%clk 0:00:09.4]}
86. Ra2 {[%clk 0:00:04]} 86... Bb6 {[%clk 0:00:09.4]} 87. Rd2+ {[%clk
0:00:04.1]} 87... Bd4 {[%clk 0:00:10]} 88. Rd1 {[%clk 0:00:04.4]} 88... Kc4
{[%clk 0:00:08]} 89. Ke4 {[%clk 0:00:05.3]} 89... Kc3 {[%clk 0:00:08.3]} 90.
Rc1+ {[%clk 0:00:05.6]} 90... Kd2 {[%clk 0:00:08.7]} 91. Rc8 {[%clk 0:00:06.1]}
91... Ke2 {[%clk 0:00:09.2]} 92. Rf8 {[%clk 0:00:06.5]} 92... Bc3 {[%clk
0:00:08.9]} 93. Rf5 {[%clk 0:00:07]} 93... Bd4 {[%clk 0:00:09.2]} 94. Rf6 {[%clk
0:00:04.1]} 94... Kf2 {[%clk 0:00:09]} 95. Rf7 {[%clk 0:00:03.3]} 95... Ke2
{[%clk 0:00:09.4]} 96. Rf8 {[%clk 0:00:02.8]} 96... Bb2 {[%clk 0:00:09.9]} 97.
Rh8 {[%clk 0:00:03.1]} 97... Bd4 {[%clk 0:00:08.3]} 98. Rh3 {[%clk 0:00:02.4]}
98... Kf1 {[%clk 0:00:05]} 99. Rf3+ {[%clk 0:00:02.7]} 99... Ke2 {[%clk
0:00:05.2]} 100. Rh3 {[%clk 0:00:02.9]} 100... Kd2 {[%clk 0:00:05]} 101. Rh2+
{[%clk 0:00:02.6]} 101... Kc3 {[%clk 0:00:05.3]} 102. Rh3+ {[%clk 0:00:02.6]}
102... Kd2 {[%clk 0:00:05.4]} 103. Rf3 {[%clk 0:00:03.5]} 103... Ke2 {[%clk
0:00:05.6]} 104. Rxf4 {[%clk 0:00:03.8]} 104... exf4 {[%clk 0:00:05]} 105. Kxf4
{[%clk 0:00:04.7]} 1/2-1/2

[Event "Early-Titled-Tuesday-Blitz-May-14-2024"]
[Site "Chess.com"]
[Date "2024.05.14"]
[Round "8"]
[White "KuzubovYuriy"]
[Black "Andrei_Skvortsov"]
[Result "0-1"]
[WhiteElo "2923"]
[BlackElo "2769"]
[TimeControl "180+1"]
[EndTime "9:25:50 PDT"]
[Termination "Andrei_Skvortsov won by resignation"]

1. d4 {[%clk 0:02:56.1]} 1... e6 {[%clk 0:02:59.2]} 2. c4 {[%clk 0:02:53.9]}
2... g6 {[%clk 0:02:50.9]} 3. Nc3 {[%clk 0:02:49.7]} 3... Bg7 {[%clk 0:02:51.3]}
4. Nf3 {[%clk 0:02:47.4]} 4... Ne7 {[%clk 0:02:51.9]} 5. e4 {[%clk 0:02:43.1]}
5... d5 {[%clk 0:02:52.3]} 6. Be3 {[%clk 0:02:32.1]} 6... dxe4 {[%clk
0:02:49.5]} 7. Nxe4 {[%clk 0:02:31.4]} 7... Nf5 {[%clk 0:02:47.8]} 8. Bg5 {[%clk
0:02:24]} 8... f6 {[%clk 0:02:47.9]} 9. Bd2 {[%clk 0:01:59.7]} 9... Nxd4 {[%clk
0:02:40.1]} 10. Nxd4 {[%clk 0:01:58.3]} 10... Qxd4 {[%clk 0:02:41]} 11. Qc2
{[%clk 0:01:36.9]} 11... f5 {[%clk 0:02:35.9]} 12. Bc3 {[%clk 0:01:27.9]} 12...
Qxe4+ {[%clk 0:02:35.8]} 13. Qxe4 {[%clk 0:01:26]} 13... Bxc3+ {[%clk
0:02:36.2]} 0-1